[Event "Estonian Chess Championship 2022"]
[Site "Tallinn, Paul Keres Chess House, Estonia"]
[Date "2022.12.18"]
[Round "9.2"]
[White "Kulaots, Kaido"]
[Black "Rychagov, Nikita"]
[Result "1/2-1/2"]
[TimeControl "90 minutes for first 40 moves and 15 min. for the rest of the game with 30 sec. increment from move 1"]
[WhiteTitle "GM"]
[WhiteFideId "4500261"]
[BlackFideId "4508394"]
[WhiteElo "2513"]
[BlackElo "2180"]

1. d4 {

[%clk 01:30:44]

} {

[%emt 00:00:15]

} d5 {

[%clk 01:30:55]

} {

[%emt 00:00:06]

} 2. c4 {

[%clk 01:30:37]

} {

[%emt 00:00:36]

} e6 {

[%clk 01:31:20]

} {

[%emt 00:00:05]

} 3. Nc3 {

[%clk 01:31:03]

} {

[%emt 00:00:03]

} Nf6 {

[%clk 01:31:45]

} {

[%emt 00:00:06]

} 4. cxd5 {

[%clk 01:31:28]

} {

[%emt 00:00:04]

} exd5 {

[%clk 01:32:08]

} {

[%emt 00:00:08]

} 5. Bg5 {

[%clk 01:31:53]

} {

[%emt 00:00:04]

} c6 {

[%clk 01:32:32]

} {

[%emt 00:00:07]

} 6. e3 {

[%clk 01:32:07]

} {

[%emt 00:00:15]

} h6 {

[%clk 01:32:43]

} {

[%emt 00:00:21]

} 7. Bh4 {

[%clk 01:32:10]

} {

[%emt 00:00:25]

} Be7 {

[%clk 01:32:53]

} {

[%emt 00:00:20]

} 8. Bd3 {

[%clk 01:32:17]

} {

[%emt 00:00:21]

} O-O {

[%clk 01:33:05]

} {

[%emt 00:00:20]

} 9. Nge2 {

[%clk 01:31:31]

} {

[%emt 00:01:16]

} Re8 {

[%clk 01:33:04]

} {

[%emt 00:00:32]

} 10. O-O {

[%clk 01:30:16]

} {

[%emt 00:01:43]

} Nbd7 {

[%clk 01:31:00]

} {

[%emt 00:02:35]

} 11. f3 {

[%clk 01:27:30]

} {

[%emt 00:03:15]

} b5 {

[%clk 01:30:54]

} {

[%emt 00:00:37]

} 12. Bf2 {

[%clk 01:27:37]

} {

[%emt 00:00:22]

} a6 {

[%clk 01:30:29]

} {

[%emt 00:00:56]

} 13. Rc1 {

[%clk 01:24:43]

} {

[%emt 00:03:23]

} c5 {

[%clk 01:29:14]

} {

[%emt 00:01:46]

} 14. dxc5 {

[%clk 01:22:11]

} {

[%emt 00:03:01]

} Bxc5 {

[%clk 01:29:39]

} {

[%emt 00:00:05]

} 15. Nd4 {

[%clk 01:19:15]

} {

[%emt 00:03:26]

} Bb7 {

[%clk 01:29:48]

} {

[%emt 00:00:22]

} 16. Bf5 {

[%clk 01:07:28]

} {

[%emt 00:12:15]

} Bf8 {

[%clk 01:25:55]

} {

[%emt 00:04:24]

} 17. a4 {

[%clk 00:58:26]

} {

[%emt 00:09:32]

} b4 {

[%clk 01:26:05]

} {

[%emt 00:00:20]

} 18. Nce2 {

[%clk 00:58:44]

} {

[%emt 00:00:11]

} Ne5 {

[%clk 01:23:57]

} {

[%emt 00:02:38]

} 19. b3 {

[%clk 00:58:02]

} {

[%emt 00:01:11]

} g6 {

[%clk 01:21:46]

} {

[%emt 00:02:42]

} 20. Bb1 {

[%clk 00:57:54]

} {

[%emt 00:00:36]

} Qd6 {

[%clk 01:10:59]

} {

[%emt 00:11:18]

} 21. Qd2 {

[%clk 00:57:00]

} {

[%emt 00:01:24]

} Rac8 {

[%clk 01:10:25]

} {

[%emt 00:01:05]

} 22. Nf4 {

[%clk 00:52:49]

} {

[%emt 00:04:39]

} Rxc1 {

[%clk 01:06:50]

} {

[%emt 00:04:05]

} 23. Rxc1 {

[%clk 00:53:00]

} {

[%emt 00:00:18]

} Rc8 {

[%clk 01:06:56]

} {

[%emt 00:00:25]

} 24. Rxc8 {

[%clk 00:35:39]

} {

[%emt 00:17:51]

} Bxc8 {

[%clk 01:07:23]

} {

[%emt 00:00:03]

} 25. Qc2 {

[%clk 00:28:17]

} {

[%emt 00:07:50]

} Bb7 {

[%clk 01:05:44]

} {

[%emt 00:02:10]

} 26. Bg3 {

[%clk 00:27:13]

} {

[%emt 00:01:33]

} Qe7 {

[%clk 01:04:05]

} {

[%emt 00:02:10]

} 27. Qc1 {

[%clk 00:18:02]

} {

[%emt 00:09:41]

} Ne8 {

[%clk 01:00:23]

} {

[%emt 00:04:12]

} 28. Nd3 {

[%clk 00:14:35]

} {

[%emt 00:03:56]

} Nxd3 {

[%clk 00:59:53]

} {

[%emt 00:01:00]

} 29. Bxd3 {

[%clk 00:15:00]

} {

[%emt 00:00:04]

} Qc5 {

[%clk 00:59:43]

} {

[%emt 00:00:40]

} 30. Qxc5 {

[%clk 00:13:56]

} {

[%emt 00:01:34]

} Bxc5 {

[%clk 01:00:03]

} {

[%emt 00:00:11]

} 31. Kf2 {

[%clk 00:14:06]

} {

[%emt 00:00:19]

} Kf8 {

[%clk 00:57:27]

} {

[%emt 00:03:08]

} 32. h4 {

[%clk 00:12:25]

} {

[%emt 00:02:10]

} h5 {

[%clk 00:56:18]

} {

[%emt 00:01:39]

} 33. Bf4 {

[%clk 00:12:50]

} {

[%emt 00:00:05]

} Ke7 {

[%clk 00:54:57]

} {

[%emt 00:01:52]

} 34. g4 {

[%clk 00:09:17]

} {

[%emt 00:04:03]

} hxg4 {

[%clk 00:54:22]

} {

[%emt 00:01:05]

} 35. fxg4 {

[%clk 00:09:42]

} {

[%emt 00:00:04]

} Nd6 {

[%clk 00:53:16]

} {

[%emt 00:01:35]

} 36. h5 {

[%clk 00:06:58]

} {

[%emt 00:03:14]

} Ne4+ {

[%clk 00:53:06]

} {

[%emt 00:00:41]

} 37. Kg2 {

[%clk 00:05:37]

} {

[%emt 00:01:51]

} gxh5 {

[%clk 00:53:08]

} {

[%emt 00:00:28]

} 38. gxh5 {

[%clk 00:06:03]

} {

[%emt 00:00:04]

} Kf6 {

[%clk 00:53:10]

} {

[%emt 00:00:29]

} 39. h6 {

[%clk 00:05:09]

} {

[%emt 00:01:24]

} Kg6 {

[%clk 00:52:17]

} {

[%emt 00:01:23]

} 40. Nf5 {

[%clk 00:18:23]

} {

[%emt 00:02:15]

} Bf8 {

[%clk 01:01:50]

} {

[%emt 00:05:58]

} 41. Nd6 {

[%clk 00:10:02]

} {

[%emt 00:08:50]

} Bxd6 {

[%clk 01:00:27]

} {

[%emt 00:01:54]

} 42. Bxd6 {

[%clk 00:10:30]

} {

[%emt 00:00:02]

} Kxh6 {

[%clk 00:53:56]

} {

[%emt 00:07:01]

} 43. Bxb4 {

[%clk 00:10:46]

} {

[%emt 00:00:13]

} d4 {

[%clk 00:54:01]

} {

[%emt 00:00:26]

} 44. Kf1 {

[%clk 00:10:06]

} {

[%emt 00:01:10]

} dxe3 {

[%clk 00:51:36]

} {

[%emt 00:02:55]

} 45. Ke2 {

[%clk 00:10:32]

} {

[%emt 00:00:04]

} f5 {

[%clk 00:51:14]

} {

[%emt 00:00:52]

} 46. Kxe3 {

[%clk 00:10:47]

} {

[%emt 00:00:14]

} Kg5 {

[%clk 00:51:39]

} {

[%emt 00:00:05]

} 47. Kd4 {

[%clk 00:10:41]

} {

[%emt 00:00:36]

} Kf4 {

[%clk 00:50:48]

} {

[%emt 00:01:21]

} 48. a5 {

[%clk 00:10:31]

} {

[%emt 00:00:40]

} Kf3 {

[%clk 00:50:17]

} {

[%emt 00:01:02]

} 49. Be7 {

[%clk 00:09:24]

} {

[%emt 00:01:36]

} f4 {

[%clk 00:49:43]

} {

[%emt 00:01:04]

} 50. b4 {

[%clk 00:09:44]

} {

[%emt 00:00:11]

} Ng3 {

[%clk 00:49:53]

} {

[%emt 00:00:21]

} 51. Kc5 {

[%clk 00:04:04]

} {

[%emt 00:06:09]

} Ke3 {

[%clk 00:49:41]

} {

[%emt 00:00:42]

} 52. Bc4 {

[%clk 00:04:18]

} {

[%emt 00:00:16]

} f3 {

[%clk 00:47:20]

} {

[%emt 00:02:51]

} 53. Kb6 {

[%clk 00:04:35]

} {

[%emt 00:00:14]

} Be4 {

[%clk 00:45:59]

} {

[%emt 00:01:50]

} 54. Bc5+ {

[%clk 00:04:40]

} {

[%emt 00:00:25]

} Kd2 {

[%clk 00:46:27]

} {

[%emt 00:00:03]

} 55. Bxa6 {

[%clk 00:04:20]

} {

[%emt 00:00:50]

} Nf5 {

[%clk 00:46:41]

} {

[%emt 00:00:17]

} 56. Bc8 {

[%clk 00:03:40]

} {

[%emt 00:01:09]

} Ne3 {

[%clk 00:46:36]

} {

[%emt 00:00:34]

} 57. a6 {

[%clk 00:03:12]

} {

[%emt 00:00:58]

} f2 {

[%clk 00:45:28]

} {

[%emt 00:01:39]

} 58. Bh3 {

[%clk 00:03:19]

} {

[%emt 00:00:23]

} Nd5+ {

[%clk 00:45:33]

} {

[%emt 00:00:26]

} 59. Ka7 {

[%clk 00:03:05]

} {

[%emt 00:00:44]

} Nxb4 {

[%clk 00:45:46]

} {

[%emt 00:00:17]

} 60. Bxb4+ {

[%clk 00:02:18]

} {

[%emt 00:01:17]

} Ke2 {

[%clk 00:45:59]

} {

[%emt 00:00:17]

} 61. Bc5 {

[%clk 00:00:54]

} {

[%emt 00:01:54]

} f1=Q {

[%clk 00:46:23]

} {

[%emt 00:00:07]

} 62. Bxf1+ {

[%clk 00:01:19]

} {

[%emt 00:00:04]

} Kxf1 {

[%clk 00:46:48]

} {

[%emt 00:00:05]

} 63. Kb8 {

[%clk 00:01:45]

} {

[%emt 00:00:03]

} Ke2 {

[%clk 00:47:12]

} {

[%emt 00:00:07]

} 64. a7 {

[%clk 00:02:12]

} {

[%emt 00:00:04]

} Kd3 {

[%clk 00:47:27]

} {

[%emt 00:00:15]

} 65. a8=Q {

[%clk 00:02:36]

} {

[%emt 00:00:06]

} Bxa8 {

[%clk 00:47:52]

} {

[%emt 00:00:05]

} 66. Kxa8 {

[%clk 00:03:04]

} {

[%emt 00:00:03]

} 1/2-1/2

[Event "Estonian Chess Championship 2022"]
[Site "Tallinn, Paul Keres Chess House, Estonia"]
[Date "2022.12.18"]
[Round "9.3"]
[White "Soot, Margus"]
[Black "Seeman, Tarvo"]
[Result "0-1"]
[TimeControl "90 minutes for first 40 moves and 15 min. for the rest of the game with 30 sec. increment from move 1"]
[BlackTitle "IM"]
[WhiteFideId "4501160"]
[BlackFideId "4500547"]
[WhiteElo "2121"]
[BlackElo "2405"]

1. c4 {

[%clk 01:30:57]

} {

[%emt 00:00:03]

} e5 {

[%clk 01:30:35]

} {

[%emt 00:00:25]

} 2. g3 {

[%clk 01:31:12]

} {

[%emt 00:00:15]

} c6 {

[%clk 01:30:53]

} {

[%emt 00:00:11]

} 3. d4 {

[%clk 01:29:09]

} {

[%emt 00:02:33]

} e4 {

[%clk 01:30:24]

} {

[%emt 00:00:59]

} 4. Nc3 {

[%clk 01:28:53]

} {

[%emt 00:00:46]

} d5 {

[%clk 01:30:30]

} {

[%emt 00:00:25]

} 5. cxd5 {

[%clk 01:27:49]

} {

[%emt 00:01:35]

} cxd5 {

[%clk 01:30:55]

} {

[%emt 00:00:04]

} 6. Qb3 {

[%clk 01:28:09]

} {

[%emt 00:00:10]

} Nf6 {

[%clk 01:30:40]

} {

[%emt 00:00:45]

} 7. Bg5 {

[%clk 01:28:21]

} {

[%emt 00:00:18]

} Nbd7 {

[%clk 01:30:20]

} {

[%emt 00:00:49]

} 8. Bh3 {

[%clk 01:16:18]

} {

[%emt 00:12:32]

} Bd6 {

[%clk 01:27:42]

} {

[%emt 00:03:08]

} 9. O-O-O {

[%clk 01:00:12]

} {

[%emt 00:16:36]

} O-O {

[%clk 01:25:51]

} {

[%emt 00:02:21]

} 10. Nxd5 {

[%clk 00:53:14]

} {

[%emt 00:07:28]

} h6 {

[%clk 01:25:11]

} {

[%emt 00:01:09]

} 11. Nxf6+ {

[%clk 00:52:33]

} {

[%emt 00:01:12]

} Nxf6 {

[%clk 01:25:30]

} {

[%emt 00:00:10]

} 12. Bxf6 {

[%clk 00:52:58]

} {

[%emt 00:00:06]

} Qxf6 {

[%clk 01:25:30]

} {

[%emt 00:00:30]

} 13. f4 {

[%clk 00:51:52]

} {

[%emt 00:01:36]

} a5 {

[%clk 01:17:28]

} {

[%emt 00:08:32]

} 14. Kb1 {

[%clk 00:42:22]

} {

[%emt 00:10:00]

} a4 {

[%clk 01:16:21]

} {

[%emt 00:01:36]

} 15. Qd5 {

[%clk 00:40:28]

} {

[%emt 00:02:23]

} a3 {

[%clk 01:14:09]

} {

[%emt 00:02:44]

} 16. b3 {

[%clk 00:36:36]

} {

[%emt 00:04:22]

} Qe7 {

[%clk 01:04:53]

} {

[%emt 00:09:46]

} 17. e3 {

[%clk 00:25:55]

} {

[%emt 00:11:10]

} Rd8 {

[%clk 00:37:07]

} {

[%emt 00:28:16]

} 18. Qb5 {

[%clk 00:22:59]

} {

[%emt 00:03:26]

} Bb4 {

[%clk 00:34:03]

} {

[%emt 00:03:34]

} 19. Bxc8 {

[%clk 00:09:04]

} {

[%emt 00:14:26]

} Rdxc8 {

[%clk 00:32:18]

} {

[%emt 00:02:15]

} 20. Qe2 {

[%clk 00:05:05]

} {

[%emt 00:04:29]

} Rc3 {

[%clk 00:31:48]

} {

[%emt 00:00:59]

} 21. Nh3 {

[%clk 00:05:24]

} {

[%emt 00:00:11]

} Qe6 {

[%clk 00:31:23]

} {

[%emt 00:00:55]

} 0-1

[Event "Estonian Chess Championship 2022"]
[Site "Tallinn, Paul Keres Chess House, Estonia"]
[Date "2022.12.18"]
[Round "9.4"]
[White "Timoshin, Andrei"]
[Black "Volodin, Aleksandr"]
[Result "1/2-1/2"]
[TimeControl "90 minutes for first 40 moves and 15 min. for the rest of the game with 30 sec. increment from move 1"]
[BlackTitle "GM"]
[WhiteFideId "4503503"]
[BlackFideId "4501950"]
[WhiteElo "2179"]
[BlackElo "2440"]

1. Nf3 {

[%clk 01:30:10]

} {

[%emt 00:00:49]

} d5 {

[%clk 01:30:03]

} {

[%emt 00:00:57]

} 2. e3 {

[%clk 01:30:24]

} {

[%emt 00:00:17]

} Nf6 {

[%clk 01:22:50]

} {

[%emt 00:07:43]

} 3. c4 {

[%clk 01:30:05]

} {

[%emt 00:00:49]

} e6 {

[%clk 01:23:01]

} {

[%emt 00:00:20]

} 4. Nc3 {

[%clk 01:29:52]

} {

[%emt 00:00:43]

} a6 {

[%clk 01:22:42]

} {

[%emt 00:00:49]

} 5. b3 {

[%clk 01:28:11]

} {

[%emt 00:02:11]

} c5 {

[%clk 01:22:32]

} {

[%emt 00:00:40]

} 6. cxd5 {

[%clk 01:24:00]

} {

[%emt 00:04:41]

} exd5 {

[%clk 01:22:50]

} {

[%emt 00:00:12]

} 7. d4 {

[%clk 01:24:28]

} {

[%emt 00:00:02]

} Nc6 {

[%clk 01:21:29]

} {

[%emt 00:01:51]

} 8. Bb2 {

[%clk 01:21:18]

} {

[%emt 00:03:40]

} Bd6 {

[%clk 01:08:27]

} {

[%emt 00:13:31]

} 9. dxc5 {

[%clk 01:16:17]

} {

[%emt 00:05:32]

} Bxc5 {

[%clk 01:08:48]

} {

[%emt 00:00:10]

} 10. Be2 {

[%clk 01:16:39]

} {

[%emt 00:00:08]

} O-O {

[%clk 01:02:34]

} {

[%emt 00:06:44]

} 11. O-O {

[%clk 01:16:45]

} {

[%emt 00:00:24]

} Re8 {

[%clk 00:56:43]

} {

[%emt 00:06:20]

} 12. Rc1 {

[%clk 01:16:12]

} {

[%emt 00:01:04]

} Ba7 {

[%clk 00:56:47]

} {

[%emt 00:00:26]

} 13. Na4 {

[%clk 01:15:30]

} {

[%emt 00:01:12]

} Ne4 {

[%clk 00:54:22]

} {

[%emt 00:02:55]

} 14. Nd4 {

[%clk 01:10:22]

} {

[%emt 00:05:38]

} Bd7 {

[%clk 00:54:07]

} {

[%emt 00:00:46]

} 15. Nxc6 {

[%clk 01:09:47]

} {

[%emt 00:01:04]

} Bxc6 {

[%clk 00:42:30]

} {

[%emt 00:12:08]

} 16. Bd4 {

[%clk 01:10:14]

} {

[%emt 00:00:03]

} Bxa4 {

[%clk 00:39:35]

} {

[%emt 00:03:25]

} 17. bxa4 {

[%clk 01:08:48]

} {

[%emt 00:01:56]

} Bb8 {

[%clk 00:39:16]

} {

[%emt 00:00:49]

} 18. g3 {

[%clk 01:08:01]

} {

[%emt 00:01:17]

} Bd6 {

[%clk 00:38:16]

} {

[%emt 00:01:30]

} 19. Bf3 {

[%clk 01:07:58]

} {

[%emt 00:00:33]

} Qd7 {

[%clk 00:35:37]

} {

[%emt 00:03:10]

} 20. Bxe4 {

[%clk 01:03:13]

} {

[%emt 00:05:14]

} dxe4 {

[%clk 00:35:24]

} {

[%emt 00:00:44]

} 21. Rb1 {

[%clk 00:58:38]

} {

[%emt 00:05:05]

} Bf8 {

[%clk 00:31:04]

} {

[%emt 00:04:49]

} 22. Qb3 {

[%clk 00:41:10]

} {

[%emt 00:17:58]

} b5 {

[%clk 00:25:48]

} {

[%emt 00:05:47]

} 23. axb5 {

[%clk 00:41:27]

} {

[%emt 00:00:14]

} axb5 {

[%clk 00:26:13]

} {

[%emt 00:00:05]

} 24. Qxb5 {

[%clk 00:41:43]

} {

[%emt 00:00:13]

} Qh3 {

[%clk 00:21:41]

} {

[%emt 00:05:02]

} 25. a4 {

[%clk 00:37:11]

} {

[%emt 00:05:02]

} Re6 {

[%clk 00:15:24]

} {

[%emt 00:06:46]

} 26. f4 {

[%clk 00:36:55]

} {

[%emt 00:00:46]

} exf3 {

[%clk 00:09:38]

} {

[%emt 00:06:16]

} 27. Rxf3 {

[%clk 00:37:22]

} {

[%emt 00:00:03]

} Rea6 {

[%clk 00:09:52]

} {

[%emt 00:00:17]

} 28. Qd5 {

[%clk 00:27:12]

} {

[%emt 00:10:39]

} Qe6 {

[%clk 00:09:57]

} {

[%emt 00:00:25]

} 29. Qxe6 {

[%clk 00:26:50]

} {

[%emt 00:00:52]

} Rxe6 {

[%clk 00:08:37]

} {

[%emt 00:01:50]

} 30. Rf2 {

[%clk 00:25:45]

} {

[%emt 00:01:34]

} Rxa4 {

[%clk 00:04:35]

} {

[%emt 00:04:33]

} 31. Rb8 {

[%clk 00:25:36]

} {

[%emt 00:00:39]

} Rc6 {

[%clk 00:04:29]

} {

[%emt 00:00:36]

} 32. Rfb2 {

[%clk 00:21:27]

} {

[%emt 00:04:39]

} Rac4 {

[%clk 00:04:44]

} {

[%emt 00:00:15]

} 33. Ra8 {

[%clk 00:21:07]

} {

[%emt 00:00:49]

} Rc8 {

[%clk 00:02:30]

} {

[%emt 00:02:45]

} 34. Rbb8 {

[%clk 00:21:12]

} {

[%emt 00:00:24]

} Rxb8 {

[%clk 00:02:52]

} {

[%emt 00:00:09]

} 35. Rxb8 {

[%clk 00:21:41]

} {

[%emt 00:00:02]

} f6 {

[%clk 00:03:09]

} {

[%emt 00:00:13]

} 36. Kg2 {

[%clk 00:21:41]

} {

[%emt 00:00:30]

} Kf7 {

[%clk 00:03:23]

} {

[%emt 00:00:16]

} 37. Kf3 {

[%clk 00:20:34]

} {

[%emt 00:01:36]

} Rc2 {

[%clk 00:03:35]

} {

[%emt 00:00:19]

} 38. Rb2 {

[%clk 00:20:14]

} {

[%emt 00:00:50]

} Rc1 {

[%clk 00:03:59]

} {

[%emt 00:00:05]

} 39. Rb8 {

[%clk 00:19:42]

} {

[%emt 00:01:02]

} Bd6 {

[%clk 00:03:46]

} {

[%emt 00:00:43]

} 40. Rd8 {

[%clk 00:33:42]

} {

[%emt 00:01:29]

} Ke6 {

[%clk 00:17:57]

} {

[%emt 00:01:21]

} 41. Rg8 {

[%clk 00:31:25]

} {

[%emt 00:02:47]

} Rc7 {

[%clk 00:18:09]

} {

[%emt 00:00:18]

} 42. h4 {

[%clk 00:27:52]

} {

[%emt 00:04:03]

} Kf5 {

[%clk 00:15:22]

} {

[%emt 00:03:17]

} 43. Rd8 {

[%clk 00:25:54]

} {

[%emt 00:02:27]

} Be7 {

[%clk 00:15:36]

} {

[%emt 00:00:16]

} 44. Ra8 {

[%clk 00:25:29]

} {

[%emt 00:00:55]

} Rc1 {

[%clk 00:15:19]

} {

[%emt 00:00:47]

} 45. Ra1 {

[%clk 00:24:49]

} {

[%emt 00:01:11]

} Rc2 {

[%clk 00:15:19]

} {

[%emt 00:00:30]

} 46. Ra7 {

[%clk 00:23:41]

} {

[%emt 00:01:38]

} Ke6 {

[%clk 00:15:39]

} {

[%emt 00:00:10]

} 47. Ra6+ {

[%clk 00:23:48]

} {

[%emt 00:00:23]

} Bd6 {

[%clk 00:15:57]

} {

[%emt 00:00:12]

} 48. Ra7 {

[%clk 00:24:05]

} {

[%emt 00:00:13]

} Bc7 {

[%clk 00:16:16]

} {

[%emt 00:00:11]

} 49. Ra8 {

[%clk 00:24:31]

} {

[%emt 00:00:04]

} Bd6 {

[%clk 00:13:05]

} {

[%emt 00:03:42]

} 50. Ra7 {

[%clk 00:24:45]

} {

[%emt 00:00:16]

} Be7 {

[%clk 00:13:16]

} {

[%emt 00:00:19]

} 51. Ra8 {

[%clk 00:24:16]

} {

[%emt 00:00:59]

} Kf7 {

[%clk 00:12:42]

} {

[%emt 00:01:04]

} 52. Ra7 {

[%clk 00:24:40]

} {

[%emt 00:00:06]

} h5 {

[%clk 00:12:26]

} {

[%emt 00:00:46]

} 53. Bb6 {

[%clk 00:21:29]

} {

[%emt 00:03:40]

} Ke6 {

[%clk 00:11:53]

} {

[%emt 00:01:04]

} 54. Rc7 {

[%clk 00:21:01]

} {

[%emt 00:00:58]

} Rxc7 {

[%clk 00:09:28]

} {

[%emt 00:02:55]

} 55. Bxc7 {

[%clk 00:21:28]

} {

[%emt 00:00:03]

} Bc5 {

[%clk 00:06:43]

} {

[%emt 00:03:15]

} 56. e4 {

[%clk 00:20:56]

} {

[%emt 00:01:02]

} Bd6 {

[%clk 00:05:58]

} {

[%emt 00:01:16]

} 57. Bd8 {

[%clk 00:20:21]

} {

[%emt 00:01:04]

} Ke5 {

[%clk 00:05:29]

} {

[%emt 00:00:59]

} 58. Ke3 {

[%clk 00:20:00]

} {

[%emt 00:00:51]

} Bc5+ {

[%clk 00:05:53]

} {

[%emt 00:00:06]

} 59. Kf3 {

[%clk 00:20:06]

} {

[%emt 00:00:23]

} Bd6 {

[%clk 00:03:55]

} {

[%emt 00:02:28]

} 60. Ke3 {

[%clk 00:20:33]

} {

[%emt 00:00:03]

} Bb8 {

[%clk 00:03:56]

} {

[%emt 00:00:28]

} 61. Bb6 {

[%clk 00:18:44]

} {

[%emt 00:02:21]

} g5 {

[%clk 00:03:24]

} {

[%emt 00:01:02]

} 62. Bd4+ {

[%clk 00:18:13]

} {

[%emt 00:01:00]

} Ke6 {

[%clk 00:03:40]

} {

[%emt 00:00:13]

} 63. Bxf6 {

[%clk 00:16:02]

} {

[%emt 00:02:41]

} Kxf6 {

[%clk 00:02:23]

} {

[%emt 00:01:47]

} 64. hxg5+ {

[%clk 00:16:30]

} {

[%emt 00:00:02]

} Kxg5 {

[%clk 00:02:06]

} {

[%emt 00:00:48]

} 65. Kf3 {

[%clk 00:16:54]

} {

[%emt 00:00:07]

} Be5 {

[%clk 00:02:25]

} {

[%emt 00:00:10]

} 66. Kg2 {

[%clk 00:17:18]

} {

[%emt 00:00:06]

} Kg4 {

[%clk 00:02:45]

} {

[%emt 00:00:11]

} 67. Kh1 {

[%clk 00:17:40]

} {

[%emt 00:00:07]

} Kf3 {

[%clk 00:01:36]

} {

[%emt 00:01:39]

} 68. Kg1 {

[%clk 00:17:47]

} {

[%emt 00:00:22]

} Kxe4 {

[%clk 00:01:10]

} {

[%emt 00:00:57]

} 69. Kg2 {

[%clk 00:17:22]

} {

[%emt 00:00:55]

} Kf5 {

[%clk 00:01:35]

} {

[%emt 00:00:05]

} 70. Kf3 {

[%clk 00:16:45]

} {

[%emt 00:01:06]

} Kg5 {

[%clk 00:02:02]

} {

[%emt 00:00:03]

} 71. Kf2 {

[%clk 00:16:24]

} {

[%emt 00:00:51]

} Kg4 {

[%clk 00:02:28]

} {

[%emt 00:00:05]

} 72. Kg2 {

[%clk 00:16:41]

} {

[%emt 00:00:12]

} Bd6 {

[%clk 00:02:54]

} {

[%emt 00:00:04]

} 73. Kf2 {

[%clk 00:17:00]

} {

[%emt 00:00:10]

} Kh3 {

[%clk 00:03:12]

} {

[%emt 00:00:13]

} 74. Kg1 {

[%clk 00:17:17]

} {

[%emt 00:00:13]

} Bc5+ {

[%clk 00:03:27]

} {

[%emt 00:00:16]

} 75. Kh1 {

[%clk 00:17:32]

} {

[%emt 00:00:14]

} Bf2 {

[%clk 00:03:50]

} {

[%emt 00:00:07]

} 76. g4 {

[%clk 00:17:54]

} {

[%emt 00:00:08]

} hxg4 {

[%clk 00:04:20]

} 1/2-1/2